bitfinex-derivatives/quotes_BTCF0:USTF0_20250902
["timestamp","ask_amount","ask_price","bid_price","bid_amount"]
[1756818141909,0.008,108990.0,108980.0,2.12755352]
[1756818142103,0.008,108990.0,108980.0,2.21929982]
[1756818142310,0.008,108990.0,108980.0,2.46929982]
[1756818142711,0.004,108990.0,108980.0,2.46929982]
[1756818143010,0.007,108990.0,108980.0,2.46929982]
[1756818143412,0.003,108990.0,108980.0,2.46929982]
[1756818143810,0.006,108990.0,108980.0,2.46929982]
[1756818144411,0.006,108990.0,108980.0,2.73499982]
[1756818145810,0.006,108990.0,108980.0,3.50137982]
[1756818146014,0.006,108990.0,108980.0,4.40745982]
[1756818146207,0.006,108990.0,108980.0,4.48981141]
[1756818146508,0.03641,109020.0,108990.0,0.0917347]
[1756818146713,0.3652,109020.0,109010.0,0.44377]
[1756818146908,0.48115,109020.0,109010.0,0.44377]
[1756818147414,0.48115,109020.0,109010.0,0.8164822]
[1756818147415,0.67077,109020.0,109010.0,0.8164822]
[1756818147612,0.69474,109020.0,109010.0,0.8164822]
[1756818148415,0.73115,109020.0,109010.0,0.8164822]
[1756818149016,0.73115,109020.0,109010.0,1.34965]
[1756818149806,0.73415,109020.0,109010.0,1.34965]
[1756818151509,0.283,109020.0,109010.0,1.7223622]
[1756818151706,0.39895,109020.0,109010.0,1.34965]
[1756818151910,0.68536,109020.0,109010.0,1.34965]
[1756818152119,0.64895,109020.0,109010.0,1.34965]
[1756818152318,0.39895,109020.0,109010.0,1.7223622]
[1756818152515,0.283,109020.0,109010.0,2.1340809]
[1756818152724,0.003,109020.0,109010.0,2.3840809]
[1756818153216,0.003,109020.0,109010.0,2.3010688]
[1756818153624,0.003,109020.0,109010.0,2.3927875]
[1756818153816,0.003,109020.0,109010.0,1.9719222]
[1756818154114,0.003,109020.0,109010.0,2.0819222]
[1756818154314,0.003,109020.0,109010.0,1.34921]
[1756818154511,0.001,109020.0,109010.0,2.0619222]
[1756818154915,0.001,109020.0,109010.0,2.1536408]
[1756818155316,0.001,109020.0,109010.0,2.0619222]
[1756818155520,0.001,109020.0,109010.0,2.07095202]
[1756818155720,0.001,109020.0,109010.0,2.16267062]
[1756818156714,0.001,109020.0,109010.0,2.41267062]
[1756818159121,0.001,109020.0,109010.0,2.41215062]
[1756818159423,0.00939395,109050.0,109020.0,0.0917098]
[1756818159721,0.37648,109050.0,109040.0,0.44452]
[1756818159920,0.52893,109050.0,109040.0,0.44452]
[1756818161126,0.53093,109050.0,109040.0,0.44452]
[1756818161714,0.54034669,109050.0,109040.0,0.44452]
[1756818161914,0.45736669,109050.0,109040.0,0.44452]
[1756818162122,0.45736669,109050.0,109040.0,0.8172322]
[1756818162322,0.48073669,109050.0,109040.0,0.44452]
[1756818162519,0.54034669,109050.0,109040.0,0.44452]
[1756818163134,0.50384669,109050.0,109040.0,0.44452]
[1756818163322,0.24595,109050.0,109040.0,0.8172322]
[1756818163627,0.24895,109050.0,109040.0,0.44452]
[1756818163824,0.24895,109050.0,109040.0,0.8172322]
[1756818164018,0.33193,109050.0,109040.0,0.44452]
[1756818164224,0.33193,109050.0,109040.0,1.34904]
[1756818164722,0.33193,109050.0,109040.0,0.44452]
[1756818164921,0.33193,109050.0,109040.0,1.349]
[1756818165122,0.33193,109050.0,109040.0,0.44452]
[1756818165321,0.92728034,109050.0,109030.0,0.3608]
[1756818165524,0.5716422,109040.0,109030.0,0.3608]
[1756818165722,0.22893,109040.0,109030.0,0.3608]
[1756818166028,0.22893,109040.0,109030.0,0.38349]
[1756818166225,0.22893,109040.0,109030.0,0.3608]
[1756818166429,0.47893,109040.0,109030.0,0.3608]
[1756818167023,0.47893,109040.0,109030.0,0.44452]
[1756818167429,0.47893,109040.0,109030.0,0.3608]
[1756818168234,0.48093,109040.0,109030.0,0.38349]
[1756818168733,0.48093,109040.0,109030.0,0.40841]
[1756818169132,0.48093,109040.0,109030.0,0.44452]
[1756818169329,0.23093,109040.0,109030.0,0.44452]
[1756818169726,0.14795,109040.0,109030.0,0.44452]
[1756818170132,0.002,109040.0,109030.0,1.518934]
[1756818170327,0.08298,109090.0,109080.0,0.02269]
[1756818170531,0.42298,109090.0,109080.0,0.04761]
[1756818170830,0.54818809,109090.0,109080.0,0.08372]
[1756818171229,0.71520809,109090.0,109080.0,0.44452]
[1756818171425,0.54818809,109090.0,109080.0,0.44452]
[1756818171832,0.46520809,109090.0,109080.0,0.44452]
[1756818172029,0.54818809,109090.0,109080.0,0.44452]
[1756818172227,0.45595,109090.0,109080.0,0.44452]
[1756818172432,0.45595,109090.0,109080.0,0.8172322]
[1756818172936,0.45595,109090.0,109080.0,0.79452]
[1756818173139,0.45595,109090.0,109080.0,0.44452]
[1756818173323,0.53893,109090.0,109080.0,0.44452]
[1756818173527,0.53893,109090.0,109080.0,1.34836]
[1756818173735,0.54193,109090.0,109080.0,1.34836]
[1756818173934,0.45895,109090.0,109080.0,0.44452]
[1756818174133,0.55109702,109090.0,109080.0,0.44452]
[1756818174640,0.49345,109090.0,109080.0,1.34824]
[1756818175137,0.45695,109090.0,109080.0,1.34824]
[1756818175333,0.45695,109090.0,109080.0,2.1009522]
[1756818175530,0.13695,109090.0,109080.0,2.0709522]
[1756818175730,0.021,109090.0,109080.0,1.94824]
[1756818175927,0.021,109090.0,109080.0,2.3209522]
[1756818176426,0.001,109090.0,109080.0,2.412612]
[1756818177035,0.00932512,109120.0,109110.0,0.08372]
[1756818177237,0.45298,109120.0,109110.0,1.70884]
[1756818177430,0.56893,109120.0,109110.0,1.70884]
[1756818177636,0.53243,109120.0,109110.0,1.70884]
[1756818177837,0.48595,109120.0,109110.0,1.70884]
[1756818178231,0.19595,109120.0,109110.0,2.0814722]
[1756818178437,0.19595,109120.0,109110.0,1.70876]
[1756818178736,0.19795,109120.0,109110.0,1.70876]
[1756818178934,0.28093,109120.0,109110.0,1.70872]
[1756818179135,0.53093,109120.0,109110.0,0.80532]
[1756818179334,0.28093,109120.0,109110.0,1.31177]
[1756818179736,0.53093,109120.0,109100.0,0.39691]
[1756818179942,0.15245,109110.0,109100.0,1.30027]
[1756818180236,0.19893,109110.0,109100.0,1.3478]
[1756818180537,0.19893,109110.0,109100.0,0.987]
[1756818180730,0.19893,109110.0,109100.0,1.3478]
[1756818181337,0.19893,109110.0,109100.0,1.3627]
[1756818181842,0.19893,109110.0,109100.0,0.987]
[1756818182542,0.0365,109100.0,109090.0,1.30007]
[1756818182737,0.11595,109100.0,109090.0,1.30007]
[1756818182937,0.11595,109100.0,109090.0,2.0127822]
[1756818183143,0.11595,109100.0,109090.0,1.6727822]
[1756818183338,0.0365,109120.0,109090.0,2.0527822]
[1756818183545,0.46298,109120.0,109110.0,0.44452]
[1756818183939,0.82378,109120.0,109110.0,0.02269]
[1756818184135,0.08298,109110.0,109100.0,0.92577]
[1756818184340,0.22893,109110.0,109100.0,0.9868]
[1756818184542,0.14595,109110.0,109100.0,1.3625]
[1756818185136,0.18245,109110.0,109100.0,1.3625]
[1756818185541,0.18245,109110.0,109100.0,0.09862]
[1756818185542,0.16932,109110.0,109100.0,0.09862]
[1756818185838,0.58973,109110.0,109100.0,0.98672]
[1756818186639,0.14595,109110.0,109100.0,1.36232]
[1756818187445,0.23015,109110.0,109100.0,0.02269]
[1756818187644,0.0842,109100.0,109090.0,0.3608]
[1756818187848,0.0365,109090.0,109080.0,1.2056]
[1756818188041,0.0842,109100.0,109090.0,0.0826]
[1756818188248,0.0942,109100.0,109090.0,0.0826]
[1756818188447,0.21015,109100.0,109090.0,0.0826]
[1756818188856,0.17365,109100.0,109090.0,0.0826]
[1756818189042,0.21015,109100.0,109090.0,0.0826]
[1756818191846,0.46015,109100.0,109090.0,0.02301]
[1756818192050,0.46015,109100.0,109090.0,0.04623]
[1756818192349,0.46015,109100.0,109090.0,0.0826]
[1756818193242,0.0477,109090.0,109070.0,1.29989]
[1756818193443,0.67704426,109080.0,109070.0,0.98532]
[1756818193649,0.14595,109080.0,109070.0,1.34612]
[1756818193843,0.14595,109080.0,109070.0,1.82301426]
[1756818194345,0.18245,109080.0,109070.0,1.34612]
[1756818194546,0.14595,109080.0,109070.0,1.34612]
[1756818194746,0.14595,109080.0,109070.0,1.34812]
[1756818195056,0.18245,109080.0,109070.0,1.34812]
[1756818195253,0.03,109080.0,109070.0,2.45501426]
[1756818195443,0.03,109080.0,109070.0,2.45301426]
[1756818195649,0.03,109080.0,109070.0,2.45401426]
[1756818195850,0.03,109080.0,109070.0,2.52667231]
[1756818196251,0.03,109080.0,109070.0,2.52967231]
[1756818196450,0.03,109080.0,109070.0,1.67277805]
[1756818196652,0.03,109080.0,109070.0,2.47967231]
[1756818197247,0.03,109080.0,109070.0,2.57134031]
[1756818197451,0.03,109080.0,109070.0,2.63707759]
[1756818197757,0.03,109080.0,109070.0,2.63807759]
[1756818197941,0.3701579,109130.0,109070.0,2.63807759]
[1756818197942,0.0458579,109130.0,109070.0,3.11497185]
[1756818198147,0.11595,109120.0,109110.0,0.92029426]
[1756818198346,0.48595,109120.0,109110.0,1.34588]
[1756818198545,0.52245,109120.0,109110.0,1.34588]
[1756818198961,0.57015,109120.0,109110.0,1.34588]
[1756818200148,1.65784426,109120.0,109110.0,0.0826]
[1756818200352,1.65784426,109120.0,109110.0,0.04623]
[1756818200659,1.18095,109120.0,109110.0,0.04623]
[1756818200851,1.18095,109120.0,109110.0,0.0826]
[1756818201658,1.18095,109120.0,109110.0,0.04623]
[1756818201953,0.82215,109120.0,109110.0,0.0826]
[1756818202857,0.7062,109120.0,109110.0,0.0826]
[1756818203055,0.82215,109120.0,109110.0,0.0826]
[1756818203659,0.82215,109120.0,109110.0,0.02301]
[1756818203957,1.27603426,109120.0,109100.0,1.31413]
[1756818204162,0.03701,109110.0,109100.0,1.20639]
[1756818204351,0.04701,109110.0,109100.0,1.20639]
[1756818204748,0.57160426,109110.0,109100.0,0.04623]
[1756818204950,0.03701,109100.0,109090.0,0.39717]
[1756818205163,0.08471,109100.0,109090.0,1.34544]
[1756818205756,0.08471,109100.0,109090.0,0.4434]
[1756818206455,0.44551,109110.0,109100.0,0.0826]
[1756818206650,0.03701,109100.0,109090.0,0.03637]
[1756818206858,0.08471,109100.0,109090.0,0.0826]
[1756818207261,0.81160426,109100.0,109090.0,0.04623]
[1756818207560,0.08471,109090.0,109080.0,0.4434]
[1756818207759,0.08471,109090.0,109080.0,0.04623]
[1756818207760,0.92240426,109090.0,109080.0,0.04623]
[1756818207962,0.92240426,109090.0,109080.0,0.0826]
[1756818208190,0.44551,109090.0,109080.0,0.0826]
[1756818208665,0.94240426,109090.0,109080.0,0.02301]
[1756818208866,0.08471,109080.0,109070.0,0.04623]
[1756818209072,0.08471,109070.0,109060.0,0.50913728]
[1756818209263,0.47689426,109080.0,109070.0,0.0826]
[1756818209264,0.08471,109080.0,109070.0,0.0826]
[1756818209458,0.08471,109080.0,109070.0,0.4434]
[1756818209957,0.85833819,109110.0,109070.0,1.45392426]
[1756818210166,0.08471,109100.0,109090.0,0.04623]
[1756818210372,0.29471,109100.0,109090.0,0.0826]
[1756818210862,0.29471,109100.0,109070.0,0.90343154]
[1756818210863,0.77160426,109100.0,109070.0,0.42753728]
[1756818211068,0.56160426,109080.0,109070.0,1.34616]
[1756818211270,0.08471,109080.0,109070.0,1.34816]
[1756818211862,0.08471,109080.0,109070.0,1.34616]
[1756818212164,0.0477,109080.0,109070.0,1.34616]
[1756818212870,0.03701,109090.0,109070.0,1.30979]
[1756818213068,0.39471,109090.0,109080.0,0.0826]
[1756818213467,0.75551,109090.0,109080.0,0.0826]
[1756818214066,0.39471,109090.0,109080.0,0.4434]
[1756818214873,0.39471,109090.0,109080.0,0.4454]
[1756818215063,0.39471,109090.0,109080.0,0.0846]
[1756818215472,0.3577,109090.0,109080.0,0.0846]
[1756818215765,0.04,109090.0,109080.0,1.23803154]
[1756818215972,0.04,109090.0,109080.0,2.13963154]
[1756818216264,0.04,109090.0,109080.0,1.66273728]
[1756818217167,0.08653,109090.0,109080.0,0.51113728]
[1756818217468,0.08653,109090.0,109080.0,1.05193728]
[1756818217667,0.04,109090.0,109080.0,1.66273728]
[1756818218267,0.04,109090.0,109080.0,0.51113728]
[1756818218574,0.12215,109090.0,109080.0,1.05181728]
[1756818218774,0.08653,109090.0,109080.0,1.41261728]
[1756818219369,0.12215,109090.0,109080.0,0.51113728]
[1756818219576,1.24984426,109090.0,109080.0,0.11396728]
[1756818219876,1.49984426,109090.0,109080.0,0.11396728]
[1756818220077,1.49984426,109090.0,109080.0,0.11430728]
[1756818220680,1.49984426,109090.0,109080.0,0.04857]
[1756818220875,0.66215,109090.0,109080.0,0.08327]
[1756818221176,0.66215,109090.0,109080.0,0.14900728]
[1756818221672,0.66215,109090.0,109080.0,0.14700728]
[1756818221879,0.66315,109090.0,109080.0,0.14700728]
[1756818222081,0.66315,109090.0,109080.0,0.08127]
[1756818222684,0.66315,109090.0,109080.0,0.02301]
[1756818222685,0.77395,109090.0,109080.0,0.02301]
[1756818222976,0.08215,109080.0,109070.0,0.08853728]
[1756818223205,1.26984426,109080.0,109070.0,0.06573728]
[1756818223481,0.08215,109070.0,109060.0,0.50759728]
[1756818223779,0.11215,109070.0,109060.0,0.44186]
[1756818224681,0.07653,109070.0,109060.0,0.44186]
[1756818225374,0.07453,109070.0,109060.0,0.44186]
[1756818225573,0.11015,109070.0,109060.0,0.44186]
[1756818225982,0.11015,109070.0,109060.0,0.44486]
[1756818226181,0.11015,109070.0,109060.0,0.44586]
[1756818226382,0.03,109070.0,109060.0,1.55849154]
[1756818226683,0.03,109070.0,109060.0,1.66678585]
[1756818228782,0.03,109070.0,109060.0,1.57510585]
[1756818228979,0.03,109070.0,109060.0,0.52821159]
[1756818229297,1.19984426,109070.0,109060.0,0.06980203]
[1756818229579,1.20903671,109070.0,109060.0,0.06980203]
[1756818229971,1.20903671,109070.0,109060.0,0.09260203]
[1756818230175,1.21903671,109070.0,109060.0,0.004]
[1756818230376,1.17823671,109070.0,109060.0,0.004]
[1756818230577,1.53903671,109070.0,109060.0,0.004]
[1756818231181,1.28903671,109070.0,109060.0,0.0268]
[1756818231483,1.28903671,109070.0,109060.0,0.05036]
[1756818231684,1.28903671,109070.0,109060.0,0.00036]
[1756818231984,1.29003671,109070.0,109060.0,0.00036]
[1756818232180,0.08215,109060.0,109050.0,0.14686203]
[1756818232383,0.09215,109060.0,109050.0,0.14686203]
[1756818232583,0.56904426,109060.0,109050.0,0.14686203]
[1756818232882,0.09603,109050.0,109040.0,0.06580203]
[1756818233087,0.96372426,109050.0,109040.0,0.06580203]
[1756818233382,0.96372426,109050.0,109040.0,0.08860203]
[1756818233584,0.96372426,109050.0,109040.0,0.14686203]
[1756818233892,0.11215,109050.0,109040.0,0.14686203]
[1756818234091,0.11215,109050.0,109040.0,0.50766203]
[1756818234275,0.03,109050.0,109040.0,1.58455629]
[1756818234477,0.03,109050.0,109040.0,1.51875426]
[1756818234677,0.03,109050.0,109040.0,1.16875426]
[1756818234976,0.03,109050.0,109040.0,0.75764419]
[1756818235177,0.05319,109050.0,109040.0,0.69186]
[1756818235379,0.05319,109050.0,109040.0,0.7576443]
[1756818235781,0.11215,109050.0,109040.0,0.1468443]
[1756818235987,0.58904426,109050.0,109040.0,0.1468443]
[1756818236291,0.11315,109050.0,109040.0,0.1468443]
[1756818236480,0.031,109050.0,109040.0,0.7586443]
[1756818236683,0.031,109050.0,109040.0,1.23553856]
[1756818236989,0.031,109050.0,109040.0,1.59245136]
[1756818237187,0.031,109050.0,109040.0,1.67380295]
[1756818239188,0.031,109050.0,109040.0,1.42380295]
[1756818239391,0.031,109050.0,109040.0,1.42580295]
[1756818239780,0.03,109050.0,109040.0,1.42881159]
[1756818239980,0.03,109050.0,109040.0,1.90566585]
[1756818240188,0.07653,109050.0,109040.0,1.42977159]
[1756818240487,0.05319,109050.0,109040.0,1.66542]
[1756818240688,0.03,109050.0,109040.0,1.82531426]
[1756818240887,0.03,109050.0,109040.0,2.19531426]
[1756818241283,0.03,109050.0,109040.0,2.27466585]
[1756818241588,0.03,109050.0,109040.0,1.90466585]
[1756818241886,0.06562,109050.0,109040.0,1.42777159]
[1756818242083,0.11215,109050.0,109040.0,0.52721159]
[1756818242285,0.07653,109050.0,109040.0,1.42465159]
[1756818242486,0.07653,109050.0,109040.0,0.52421159]
[1756818242685,0.11215,109050.0,109040.0,1.3423]
[1756818242882,0.37603,109050.0,109040.0,1.34226]
[1756818243195,0.37603,109050.0,109040.0,1.40805116]
[1756818243398,0.37603,109050.0,109040.0,0.11215116]
[1756818243587,0.03562,109040.0,109030.0,0.42659116]
[1756818243894,0.89422426,109040.0,109020.0,1.01918733]
[1756818244088,0.44295,109030.0,109020.0,0.08416733]
[1756818244283,0.47295,109030.0,109020.0,0.08416733]
[1756818244686,1.19984426,109030.0,109020.0,0.08416733]
[1756818244895,1.19984426,109030.0,109020.0,0.01837617]
[1756818245791,1.16422426,109030.0,109010.0,0.95360264]
[1756818246094,0.08215,109020.0,109010.0,0.99996264]
[1756818247300,0.08315,109020.0,109010.0,0.99996264]
[1756818247996,0.04753,109020.0,109010.0,1.35996264]
[1756818248196,0.02419,109020.0,109010.0,1.36076264]
[1756818248397,0.02519,109020.0,109010.0,1.70076264]
[1756818248590,0.02519,109020.0,109010.0,1.36076264]
[1756818248591,0.06082,109020.0,109010.0,1.36076264]
[1756818248791,0.08514,109020.0,109010.0,0.99996264]
[1756818249795,0.08514,109020.0,109010.0,0.99988264]
[1756818250194,0.04951,109020.0,109010.0,0.99988264]
[1756818250389,0.04951,109020.0,109010.0,1.36068264]
[1756818250591,0.08514,109020.0,109010.0,1.36068264]
[1756818250999,0.08514,109020.0,109010.0,0.46048264]
[1756818251195,0.56203426,109020.0,109010.0,0.99980264]
[1756818251502,0.08514,109020.0,109010.0,0.99976264]
[1756818252297,0.08514,109020.0,109010.0,1.34194]
[1756818252899,0.09440576,109020.0,109010.0,1.34194]
[1756818253297,0.09440576,109020.0,109010.0,0.98114]
[1756818253498,0.12440576,109020.0,109010.0,0.98114]
[1756818254698,0.11514,109020.0,109010.0,0.98114]
[1756818254899,0.12423104,109020.0,109010.0,0.98114]
[1756818255394,0.6011253,109020.0,109010.0,0.08106]
[1756818255595,0.032,109020.0,109010.0,0.08106]
[1756818255800,0.02543,109020.0,109010.0,0.08106]
[1756818256301,0.04975,109020.0,109010.0,0.08106]
[1756818256802,0.04975,109020.0,109010.0,0.44186]
[1756818257194,0.04975,109020.0,109010.0,0.78186]
[1756818257400,0.002,109020.0,109010.0,1.86349555]
[1756818258399,0.002,109020.0,109010.0,1.6987873]
[1756818258595,0.002,109020.0,109010.0,1.14222236]
[1756818258796,0.001,109020.0,109010.0,2.2505473]
[1756818259207,0.001,109020.0,109010.0,2.2505073]
[1756818259402,0.001,109020.0,109010.0,1.77629395]
[1756818259604,0.03563,109040.0,109010.0,2.2535073]
[1756818259902,0.05775,109040.0,109030.0,0.3608]
[1756818260099,0.05775,109040.0,109030.0,1.32617053]
[1756818260300,0.09338,109040.0,109030.0,1.32617053]
[1756818261205,0.05775,109040.0,109030.0,1.32617053]
[1756818261505,0.01,109040.0,109030.0,1.32617053]
[1756818262008,0.01,109040.0,109030.0,1.26044]
[1756818262311,0.01,109040.0,109030.0,1.61044]
[1756818262700,0.01,109040.0,109030.0,2.47208928]
[1756818262906,0.01,109040.0,109030.0,2.38038388]
[1756818263108,0.01,109040.0,109030.0,2.47208928]
[1756818264910,0.01,109040.0,109030.0,2.83288928]
[1756818265205,0.01,109040.0,109030.0,2.83488928]
[1756818266009,0.01,109040.0,109030.0,3.10961433]
[1756818266517,0.01,109040.0,109030.0,3.0438838]
[1756818266902,0.01,109040.0,109030.0,3.12623539]
[1756818267813,0.01,109040.0,109030.0,2.22229159]
[1756818268005,0.01,109040.0,109030.0,3.05585875]
[1756818268315,0.01,109040.0,109030.0,2.96363335]
[1756818268811,0.01,109040.0,109030.0,2.96263335]
[1756818269205,0.01,109040.0,109030.0,3.06350129]
[1756818269411,0.01,109040.0,109030.0,2.07267589]
[1756818269606,0.01,109040.0,109030.0,2.97171589]
[1756818269815,0.04563,109040.0,109030.0,1.88826]
[1756818270314,0.04563,109040.0,109030.0,1.95397119]
[1756818270315,0.34338,109040.0,109030.0,1.95397119]
[1756818271505,0.34338,109040.0,109030.0,1.95297119]
[1756818272008,0.34338,109040.0,109030.0,1.62152]
[1756818272214,0.34338,109040.0,109030.0,1.62052]
[1756818272215,0.34438,109040.0,109030.0,1.62052]
[1756818272409,0.34438,109040.0,109030.0,1.70287159]
[1756818273212,0.30875,109040.0,109030.0,1.70287159]
[1756818274708,0.34438,109040.0,109030.0,1.70287159]
[1756818274904,0.30875,109040.0,109030.0,1.70287159]
[1756818275311,0.011,109040.0,109030.0,2.88879034]
[1756818276014,0.011,109040.0,109030.0,2.79708494]
[1756818276215,0.011,109040.0,109030.0,1.98987034]
[1756818276416,0.01,109040.0,109030.0,2.88935034]
[1756818276618,0.01,109040.0,109030.0,1.52916494]
[1756818276815,0.04485,109040.0,109030.0,2.42764494]
[1756818277019,0.04485,109040.0,109030.0,1.95243159]
[1756818277210,0.04485,109040.0,109030.0,1.95339159]
[1756818277406,0.04485,109040.0,109030.0,2.42760494]
[1756818277721,0.01,109040.0,109030.0,2.69330494]
[1756818277912,0.01,109040.0,109030.0,2.78601034]
[1756818278112,0.01,109040.0,109030.0,3.15601034]
[1756818278718,0.01,109040.0,109030.0,3.06330494]
[1756818278905,0.01,109040.0,109030.0,2.69330494]
[1756818279109,0.01,109040.0,109030.0,2.44330494]
[1756818279429,0.04585,109040.0,109030.0,2.44230494]
[1756818279718,0.04585,109040.0,109030.0,1.54486494]
[1756818279917,0.04585,109040.0,109030.0,1.96889159]
[1756818280228,0.04485,109040.0,109030.0,1.96889159]
[1756818280519,0.04485,109040.0,109030.0,1.96989159]
[1756818280820,0.01,109040.0,109030.0,1.96989159]
[1756818281014,0.04585,109040.0,109030.0,1.96889159]
[1756818281415,0.04585,109040.0,109030.0,1.07065159]
[1756818281721,0.04585,109040.0,109030.0,1.70315159]
[1756818282019,0.04585,109040.0,109030.0,1.70215159]
[1756818283113,0.04585,109040.0,109030.0,1.70199159]
[1756818283424,0.04585,109040.0,109030.0,1.61964]
[1756818283913,0.04585,109040.0,109030.0,0.7216]
[1756818283914,0.0938,109040.0,109030.0,0.7216]
[1756818284316,1.50881335,109040.0,109030.0,0.08233432]
[1756818284518,1.50881335,109040.0,109030.0,0.0658754]
[1756818284725,0.6738,109040.0,109020.0,1.34101432]
[1756818285022,0.4238,109040.0,109020.0,1.34101432]
[1756818285210,0.4238,109040.0,109030.0,0.08233432]
[1756818286523,0.4228,109040.0,109030.0,0.08233432]
[1756818287112,0.6728,109040.0,109030.0,0.08233432]
[1756818287720,0.6738,109040.0,109030.0,0.08233432]
[1756818288517,1.0346,109040.0,109030.0,0.98005432]
[1756818288722,1.0346,109040.0,109030.0,0.97993432]
[1756818288923,1.0346,109040.0,109030.0,0.08233432]
[1756818289317,1.0346,109040.0,109020.0,0.00733432]
[1756818289318,1.50981335,109040.0,109020.0,0.00733432]
[1756818289520,0.04795,109020.0,109010.0,1.27696016]
[1756818289824,0.0928,109020.0,109010.0,1.31231016]
[1756818290618,0.4536,109020.0,109010.0,0.01864016]
[1756818290824,0.0928,109020.0,109010.0,0.01864016]
[1756818291224,0.4128,109020.0,109010.0,0.01864016]
[1756818291421,1.54781335,109020.0,109010.0,0.01864016]
[1756818291624,1.24691319,109020.0,109010.0,0.01864016]
[1756818291922,1.24791319,109020.0,109010.0,0.01864016]
[1756818292123,0.77369984,109020.0,109010.0,0.01864016]
[1756818292321,0.0828,109010.0,109000.0,0.98052]
[1756818292624,0.1028,109010.0,109000.0,0.98052]
[1756818294124,0.1038,109010.0,109000.0,0.98052]
[1756818295418,0.4746,109010.0,109000.0,0.04781]
[1756818295720,0.4746,109010.0,109000.0,0.02372]
[1756818295922,0.4446,109010.0,109000.0,0.08316]
[1756818296129,0.8146,109010.0,109000.0,0.08316]
[1756818297425,0.0838,109010.0,109000.0,0.08316]
[1756818297630,0.4638,109010.0,109000.0,0.08316]
[1756818299615,0.4638,109010.0,108990.0,1.43181063]
[1756818299825,0.04946,109000.0,108990.0,1.46716063]
[1756818300018,0.04946,109000.0,108990.0,1.31165612]
[1756818300224,0.03485,109000.0,108990.0,1.31165612]
[1756818300424,0.3618,109010.0,109000.0,0.08316]
[1756818300425,0.0838,109010.0,109000.0,0.08316]
[1756818300728,0.05895,109010.0,109000.0,0.87737335]
[1756818300925,0.001,109010.0,109000.0,1.57990405]
[1756818301520,0.001,109010.0,109000.0,1.66210276]
[1756818302129,2.31135078,109060.0,109050.0,0.04781]
[1756818302130,0.0828,109060.0,109050.0,0.04781]
[1756818302327,0.3428,109060.0,109050.0,1.34064]
[1756818302630,0.3438,109060.0,109050.0,1.34064]
[1756818302827,0.3438,109060.0,109050.0,0.38452]
[1756818303129,0.09741,109050.0,109040.0,0.84604]
[1756818303329,0.09841,109050.0,109040.0,0.84604]
[1756818303530,0.11841,109050.0,109040.0,0.84604]
[1756818303726,0.1038,109050.0,109040.0,0.84604]
[1756818304029,0.11841,109050.0,109040.0,0.84604]
[1756818304228,0.11841,109050.0,109040.0,0.97964]
[1756818304428,1.20342335,109050.0,109030.0,0.44296695]
[1756818304726,0.40975,109040.0,109020.0,1.48979262]
[1756818305030,0.0838,109030.0,109020.0,0.44396]
[1756818305330,0.0828,109020.0,109010.0,0.46255183]
[1756818305526,0.0838,109020.0,109010.0,1.35891183]
[1756818305721,0.0838,109020.0,109010.0,0.46255183]
[1756818306530,0.4446,109020.0,109010.0,0.06640183]
[1756818306724,0.4446,109020.0,109010.0,0.01859183]
[1756818306725,0.4546,109020.0,109010.0,0.01859183]
[1756818307329,1.17881335,109020.0,109010.0,0.01859183]
[1756818307524,1.47881335,109020.0,109010.0,0.01859183]
[1756818307833,1.47981335,109020.0,109010.0,0.01859183]
[1756818308127,1.44496335,109020.0,109000.0,0.89616]
[1756818308326,0.0843,109010.0,109000.0,0.94358]
[1756818308632,0.1153,109010.0,109000.0,0.97804]
[1756818309721,0.1153,109010.0,109000.0,0.08188]
[1756818309926,0.1153,109010.0,109000.0,0.91905]
[1756818310126,0.1153,109010.0,109000.0,0.97788]
[1756818311831,0.1153,109010.0,109000.0,0.08188]
[1756818312232,0.3953,109010.0,109000.0,0.08188]
[1756818312630,1.08419335,109010.0,108990.0,1.0]
[1756818312833,0.87133335,109000.0,108990.0,1.03446]
[1756818313032,0.86498335,109000.0,108990.0,1.03446]
[1756818313220,0.75157,109000.0,108990.0,1.03446]
[1756818313428,0.75157,109000.0,108990.0,1.0]
[1756818313730,1.47578335,109000.0,108990.0,1.0]
[1756818314233,1.47578335,109000.0,108990.0,1.001]
[1756818314431,1.47578335,109000.0,108990.0,1.002]
[1756818315832,0.75157,109000.0,108990.0,1.002]
[1756818316135,0.73712,109000.0,108990.0,1.03646]
[1756818316326,1.21133335,109000.0,108990.0,1.03646]
[1756818316930,0.85053335,109000.0,108990.0,1.03646]
[1756818317436,0.0843,109010.0,109000.0,0.04742]
[1756818317641,0.39998,109010.0,109000.0,0.08188]
[1756818317837,0.39998,109010.0,109000.0,0.97736]
[1756818318135,0.4353,109010.0,109000.0,0.97736]
[1756818319333,0.4353,109010.0,109000.0,0.08188]
[1756818319538,0.91269318,109010.0,109000.0,0.08188]
[1756818319840,0.7961,109010.0,109000.0,0.08188]
[1756818320031,1.27349318,109010.0,109000.0,0.02305]
[1756818320428,0.04977,109000.0,108990.0,1.0]
[1756818320633,0.92896318,109000.0,108990.0,1.0]
[1756818321336,0.88896318,109000.0,108990.0,1.0]
[1756818321530,1.49896318,109000.0,108990.0,1.0]
[1756818321728,1.49896318,109000.0,108990.0,1.001]
[1756818322831,1.49796318,109000.0,108990.0,1.002]
[1756818323033,1.49896318,109000.0,108990.0,1.002]
[1756818323640,2.39400318,109000.0,108990.0,1.002]
[1756818323839,2.39400318,109000.0,108990.0,1.001]
[1756818324439,2.39400318,109000.0,108990.0,1.0]
[1756818324643,2.39600318,109000.0,108990.0,1.0]
[1756818325035,1.91861,109000.0,108990.0,1.0]
[1756818325234,2.39600318,109000.0,108990.0,1.0]